Cogmind - Beta 9.6 @@@ ROGUE MODE // 2020.04.23 @ 15:49:19 Player: TravelDemon Result: Destroyed by as-82583 with Assembled Rifle Performance ------------- Evolutions (0) 0 Regions Visited (4) 800 Robots Destroyed (29) 145 Value Destroyed (592) 592 Prototype IDs (22) 440 Alien Tech Used (0) 0 Bonus (300) 300 TOTAL SCORE: 2277 Bonus ------- Aligned with FarCom 300 Cogmind --------- Core Integrity 0/250 Matter 300/300 Energy 100/100 System Corruption 4% Temperature Cool (0) Movement Core (50) Location -9/Mines Parts ------- > --- POWER (1) -------- (None) > --- PROPULSION (2) --- (None) > --- UTILITY (2) ------ (None) > --- WEAPON (2) ------- (None) > --- INVENTORY (4) ---- Signal Interpreter Seismic Analyzer Targeting Computer Light Assault Rifle Peak State ------------ > --- POWER ------------ Light Nuclear Core > --- PROPULSION ------- Aluminum Leg Carbon-fiber Leg > --- UTILITY ---------- High-capacity Storage Unit > --- WEAPON ----------- Heavy Battle Rifle Mining Claw > --- INVENTORY -------- Light Treads Superbattery High-capacity Matter Pod Visual Processing Unit Signal Interpreter Seismic Analyzer Targeting Computer Targeting Computer Targeting Computer Assault Rifle Light Assault Rifle Rocket Launcher [Rating: 15] Favorites ----------- Power Light Nuclear Core Engine Ion Engine Power Core Light Nuclear Core Propulsion Aluminum Leg Treads Light Treads Leg Aluminum Leg Utility High-capacity Storage Unit Storage High-capacity Storage Unit Protection Weapon Shielding Weapon Light Assault Rifle Energy Gun EM Pulse Gun Ballistic Gun Light Assault Rifle Slashing Weapon Mining Claw Build | -11 -10 -10 -10 -9 ------- Run | Scr Mat Min Exi Min Slots Evolved . | . . . . . Power . | . . . . . Propulsion . | . . . . . Utility . | . . . . . Weapon . | . . . . . Parts Attached 20 | 6 9 5 . . Power 3 | 1 2 . . . Engine 2 | 1 1 . . . Core 1 | . 1 . . . Reactor . | . . . . . Propulsion 7 | 2 2 3 . . Treads 2 | 2 . . . . Leg 5 | . 2 3 . . Wheel . | . . . . . Hover . | . . . . . Flight . | . . . . . Utility 3 | 1 2 . . . Device . | . . . . . Storage 2 | 1 1 . . . Processor . | . . . . . Hackware . | . . . . . Protection 1 | . 1 . . . Artifact . | . . . . . Weapon 7 | 2 3 2 . . Energy Gun 1 | 1 . . . . Energy Cannon . | . . . . . Ballistic Gun 5 | 1 3 1 . . Ballistic Cannon . | . . . . . Launcher . | . . . . . Special Weapon . | . . . . . Impact Weapon . | . . . . . Slashing Weapon 1 | . . 1 . . Piercing Weapon . | . . . . . Special Melee Weapon . | . . . . . Unidentified Prototypes . | . . . . . Parts Lost 9 | . 5 1 . 3 Power 3 | . 2 . . 1 Propulsion 3 | . 2 . . 1 Utility 1 | . . 1 . . Weapon 2 | . 1 . . 1 Highest Loss Streak 3 | . 2 1 . 3 Average Slot Usage (%) 90 | . 96 90 85 58 Engine 6 | . 12 . . . Core 7 | . . 14 14 9 Treads 8 | . 17 . . . Leg 18 | . 9 27 28 18 Storage 13 | . 14 14 14 9 Protection 7 | . 12 5 . . Energy Gun 2 | . 5 . . . Ballistic Gun 20 | . 22 22 14 9 Slashing Weapon 4 | . . 5 14 9 Naked Turns 57 | . . . . 57 Heaviest Build 43 | 13 41 43 43 43 Greatest Support 40 | 40 40 25 25 25 Greatest Overweight (x) 12 | . 12 4 1 3 Average Overweight (x) . | . . 1 1 . Largest Inventory Capacity 12 | 6 12 12 12 12 Average Capacity 10 | 5 9 12 12 9 Most Carried 12 | 3 12 12 12 12 Average Carried 9 | 1 7 11 11 9 Final Capacity 12 | 6 12 12 12 4 Final Carried 12 | 3 12 12 12 4 Class Distribution -------------------- 65% | Mutant 34% | Scavenger-Mutant Dominant Class ---------------- Mutant | -10/Materials Scavenger-Mutant | -10/Mines Mutant | -10/Exiles Mutant | -9/Mines Resources | -11 -10 -10 -10 -9 ----------- Run | Scr Mat Min Exi Min Matter Collected 1098 | 185 770 119 . 24 Remotely . | . . . . . Salvage Created 928 | . 671 245 . 12 Parts 60 | . 48 12 . . Haulers Intercepted 1 | . 1 . . . Recyclers Shooed 2 | . 1 . . 1 Parts Field Recycled . | . . . . . Retrieved Matter . | . . . . . Parts Self-Destructed . | . . . . . Prevented . | . . . . . Kills | -11 -10 -10 -10 -9 ------- Run | Scr Mat Min Exi Min Combat Hostiles Destroyed 24 | . 19 4 . 1 Guns 24 | . 19 4 . 1 Classes Destroyed 7 | . 6 . . 1 Builder 1 | . 1 . . . Hauler 1 | . 1 . . . Recycler 2 | . 1 1 . . Watcher 1 | . 1 . . . Swarmer 11 | . 11 . . . Grunt 12 | . 8 4 . . Assembled 1 | . . . . 1 Best Kill Streak 3 | . 3 2 . 1 Combat Bots Only 3 | . 3 2 . 1 Max Kills in Single Turn 2 | . 2 1 . 1 Gunslinging 1 | . 1 . . . Exploded . | . . . . . Melee . | . . . . . Uniques/NPCs Destroyed . | . . . . . Combat | -11 -10 -10 -10 -9 -------- Run | Scr Mat Min Exi Min Damage Taken 1511 | . 938 219 . 354 Core 252 | . 115 52 . 85 Absorbed by Shields . | . . . . . Core Remaining (%) 100 | 100 . . . . Volleys Fired 102 | . 81 18 . 3 Largest 2 | . 2 2 . 1 Hottest 60 | . 60 40 . 33 Shots Fired 186 | . 157 26 . 3 Gun 186 | . 157 26 . 3 Cannon . | . . . . . Launcher . | . . . . . Special . | . . . . . Kinetic 157 | . 128 26 . 3 Thermal . | . . . . . Explosive . | . . . . . Electromagnetic 29 | . 29 . . . Robot Hit Streak 19 | . 12 19 . . Robot Miss Streak 6 | . 6 1 . 3 Penetration Max . | . . . . . Secondary Targets 10 | . 9 1 . . Max Gunslinging Chain 1 | . 1 1 . . Shots Hit Robots 115 | . 94 21 . . Core Hits 54 | . 38 10 . 6 Critical Hits 2 | . 1 . . 1 Critical Kills . | . . . . . Critical Parts Destroyed 1 | . . . . 1 Melee Attacks 10 | . . 9 . 1 Impact . | . . . . . Slashing 10 | . . 9 . 1 Piercing . | . . . . . Sneak Attacks . | . . . . . Combat Hostiles . | . . . . . Follow-up Attacks . | . . . . . Damage Inflicted 1365 | . 1023 263 . 79 Guns 1340 | . 1023 263 . 54 Cannons . | . . . . . Explosions . | . . . . . Melee . | . . . . . Ramming 25 | . . . . 25 Kinetic 1086 | . 769 263 . 54 Thermal . | . . . . . Explosive . | . . . . . Electromagnetic 254 | . 254 . . . Impact . | . . . . . Slashing . | . . . . . Piercing . | . . . . . Highest Corruption 4 | . 4 4 4 4 Average Corruption 3 | . 3 4 4 4 Corruption Purged . | . . . . . Effects 58 | . 27 20 7 4 Message Errors 11 | . 2 5 3 1 Matter Fused 12 | . 6 3 2 1 Heat Flow Errors 7 | . 5 2 . . Energy Discharges 15 | . 6 7 1 1 Parts Rejected 1 | . . 1 . . Data Loss (minor) 4 | . 1 1 1 1 Targeting Errors 7 | . 6 1 . . Weapon Failures 1 | . 1 . . . Overload Shots . | . . . . . Overflow Damage . | . . . . . Projectiles . | . . . . . Explosions . | . . . . . Melee . | . . . . . Knockbacks . | . . . . . Impact . | . . . . . Kinetic . | . . . . . Secondary . | . . . . . Self-Inflicted Damage 10 | . . . . 10 Shots . | . . . . . Rammed 10 | . . . . 10 Targets Rammed 10 | . . . . 10 Kicked . | . . . . . Crushed . | . . . . . Highest Temperature 280 | . 280 246 . 16 Average Temperature 63 | . 69 56 . 10 Received Heat Transfer 502 | . 279 123 . 100 Siege Activations . | . . . . . Robots Corrupted . | . . . . . Combat Hostiles . | . . . . . Parts Fried . | . . . . . Impact Corruptions . | . . . . . Robots Melted . | . . . . . Combat Hostiles . | . . . . . Parts Melted . | . . . . . Heat Transferred . | . . . . . Parts Sabotaged . | . . . . . Parts Stolen . | . . . . . Parts Stripped . | . . . . . Power Chain Reactions . | . . . . . Missiles Intercepted . | . . . . . Alert | -11 -10 -10 -10 -9 ------- Run | Scr Mat Min Exi Min Peak Influence 240 | . 240 101 . . Average Influence 71 | . 112 30 . . Maximum Alert Level 1 | . 1 . . . Low Security (%) 95 | 100 91 100 . 100 Level 1 4 | . 8 . . . Level 2 . | . . . . . Level 3 . | . . . . . Level 4 . | . . . . . Level 5 . | . . . . . High Security . | . . . . . Max Security . | . . . . . Squads Dispatched 2 | . 2 . . . Investigation 2 | . 2 . . . Extermination . | . . . . . Reinforcement . | . . . . . Assault . | . . . . . Garrison . | . . . . . Intercept . | . . . . . Construction Impeded . | . . . . . Haulers Reinforced . | . . . . . Stealth | -11 -10 -10 -10 -9 --------- Run | Scr Mat Min Exi Min Distress Signals 2 | . 1 . . 1 Communications Jammed . | . . . . . Distress Signals . | . . . . . Times Spotted 57 | . 29 4 . 24 Peak Tracking Total 20 | . 5 2 . 20 Tactical Retreats 4 | . . . . 4 Traps | -11 -10 -10 -10 -9 ------- Run | Scr Mat Min Exi Min Traps Triggered 5 | . 5 . . . Indirectly . | . . . . . Trap Hack Attempts . | . . . . . Triggered . | . . . . . Disarmed . | . . . . . Reprogrammed . | . . . . . Reused . | . . . . . Traps Extracted . | . . . . . Installed . | . . . . . Triggered . | . . . . . Machines | -11 -10 -10 -10 -9 ---------- Run | Scr Mat Min Exi Min Machines Disabled . | . . . . . Max in Single Turn . | . . . . . Machines Sabotaged . | . . . . . Garrisons Compromised . | . . . . . Overloaded Fab Kills . | . . . . . Fab Network Shutdowns . | . . . . . Hacking | -11 -10 -10 -10 -9 --------- Run | Scr Mat Min Exi Min Machines Accessed 2 | . 1 . 1 . Terminals 1 | . 1 . . . Fabricators . | . . . . . Repair Stations . | . . . . . Recycling Units . | . . . . . Scanalyzers . | . . . . . Garrison Access . | . . . . . Total Hacks 2 | . 1 . 1 . Successful 2 | . 1 . 1 . Failed . | . . . . . Catastrophic . | . . . . . Database Lockouts . | . . . . . Manual 1 | . . . 1 . Terminals 1 | . 1 . . . Fabricators . | . . . . . Repair Stations . | . . . . . Recycling Units . | . . . . . Scanalyzers . | . . . . . Garrison Access . | . . . . . Terminal Hacks 2 | . 1 . 1 . Hauler Manifests 1 | . 1 . . . EX-Prototype ID Bank 1 | . . . 1 . Fabricator Hacks . | . . . . . Repair Station Hacks . | . . . . . Recycling Unit Hacks . | . . . . . Scanalyzer . | . . . . . Garrison Access Hacks . | . . . . . Unauthorized Hacks . | . . . . . Terminals . | . . . . . Fabricators . | . . . . . Repair Stations . | . . . . . Recycling Units . | . . . . . Scanalyzers . | . . . . . Garrison Access . | . . . . . Data Cores Recovered . | . . . . . Used . | . . . . . Hacking Detections . | . . . . . Full Trace Events . | . . . . . Feedback Events . | . . . . . Feedback Blocked . | . . . . . Robot Schematics Acquired . | . . . . . Robots Built . | . . . . . Matter . | . . . . . Time . | . . . . . Total Robot Build Rating . | . . . . . Part Schematics Acquired . | . . . . . Parts Built . | . . . . . Matter . | . . . . . Time . | . . . . . Total Part Build Rating . | . . . . . Parts Repaired . | . . . . . Time . | . . . . . Parts Recycled . | . . . . . Recycled Matter . | . . . . . Retrieved Matter . | . . . . . Retrieved Components . | . . . . . Parts Scanalyzed . | . . . . . Part Schematics Acquired . | . . . . . Parts Damaged . | . . . . . Bothacking | -11 -10 -10 -10 -9 ------------ Run | Scr Mat Min Exi Min Used RIF Installer . | . . . . . Robots Hacked . | . . . . . Non-combat . | . . . . . Combat . | . . . . . Robot Hacks Applied . | . . . . . Relay Couplers Released . | . . . . . Robots Rewired . | . . . . . Allies Hacked . | . . . . . Hacks Repelled . | . . . . . Allies | -11 -10 -10 -10 -9 -------- Run | Scr Mat Min Exi Min Total Allies 2 | . . 2 . . Largest Group 2 | . . 2 1 . Highest-Rated Group 42 | . . 42 11 . Highest-Rated Ally 31 | . . 31 11 . Total Orders . | . . . . . Ally Attacks 7 | . . 7 . . Total Damage 86 | . . 86 . . Kills . | . . . . . Allies Corrupted . | . . . . . Allies Melted . | . . . . . Intel | -11 -10 -10 -10 -9 ------- Run | Scr Mat Min Exi Min Robot Analysis Total . | . . . . . Derelict Logs Recovered 2 | . . 1 . 1 Drone Launches . | . . . . . Drone Recoveries . | . . . . . Exploration | -11 -10 -10 -10 -9 ------------- Run | Scr Mat Min Exi Min Turns Passed 2917 | 76 1385 961 324 171 Spaces Moved 1681 | 48 697 555 216 165 Core 111 | 11 4 . . 96 Treads 473 | 37 436 . . . Legs 1097 | . 257 555 216 69 Wheels . | . . . . . Hover . | . . . . . Flight . | . . . . . Fastest Speed 50 | 50 150 150 150 50 Average Speed 149 | 134 160 152 150 92 Slowest Speed 650 | 160 650 240 150 210 Overloaded Moves . | . . . . . Propulsion Burnouts . | . . . . . Robots Hopped . | . . . . . Cave-ins Triggered . | . . . . . Exploration Rate (%) 56 | 4 87 79 61 49 Regions Visited 4 Branch Regions 3 Pre-discovered Areas . | . . . . . Known Exits Taken . | . . . . . Unknown Exits Taken 4 | 1 1 1 1 . Scrap Searched 3 | . . 1 . 2 Spaces Dug 7 | . . 7 . . Terrain Destroyed 7 | . . 7 . . Melee 7 | . . 7 . . Projectile . | . . . . . AOE . | . . . . . Actions | -11 -10 -10 -10 -9 --------- Run | Scr Mat Min Exi Min Total 1899 | 56 816 631 217 179 Wait 40 | . 8 32 . . Move 1677 | 47 696 554 215 165 Hop . | . . . . . Pick Up 23 | 3 14 5 1 . Fast Attach 19 | 6 9 4 . . Attach . | . . . . . Detach . | . . . . . Swap 1 | . . 1 . . Drop 17 | . 8 8 1 . Fire 102 | . 81 18 . 3 Melee 10 | . . 9 . 1 Ram 10 | . . . . 10 Kick . | . . . . . Crush . | . . . . . Escape Stasis . | . . . . . Rewire . | . . . . . Trap . | . . . . . Miscellaneous . | . . . . . Route ------- -11/Scrapyard -10/Materials (discovered 5 exits: *Mat x3 / [*Min x2]) -10/Mines (discovered 2 exits: *Mat / *Exi) -10/Exiles -9/Mines History --------- Turn | Location | Event 10 | -11/Scrapyard | Discovered new exit (range 15) 77 | -11/Scrapyard | Entered Materials 301 | -10/Materials | Discovered new exit (range 11) 304 | -10/Materials | Build established: Mutant 355 | -10/Materials | Discovered new exit (range 6) 546 | -10/Materials | Discovered new exit (range 3) 867 | -10/Materials | Discovered new exit (range 15) 1130 | -10/Materials | Discovered new exit (range 4) 1283 | -10/Materials | Build established: Scavenger-Mutant 1462 | -10/Materials | Entered Mines 1497 | -10/Mines | Identified exit to Materials 1509 | -10/Mines | Found a hidden stash of uninstalled traps 1611 | -10/Mines | Deemed a non-threat by the Exiles lab entrance 1612 | -10/Mines | Discovered new exit (range 5) 1835 | -10/Mines | Core integrity fell below 50% 1878 | -10/Mines | Received a Rocket Launcher from a helpful Derelict 2117 | -10/Mines | A weapon hastily lodged in a ceiling crevice suddenly fell to the ground 2299 | -10/Mines | Build established: Mutant 2423 | -10/Mines | Entered Exiles 2423 | -10/Exiles | Accompanied by 1 ally 2459 | -10/Exiles | Met 8R-AWN 2486 | -10/Exiles | Met EX-HEX 2528 | -10/Exiles | Met EX-BIN 2546 | -10/Exiles | Aligned with FarCom system 2548 | -10/Exiles | Given EX-Vault access code 2584 | -10/Exiles | Opened EX-Vault 2601 | -10/Exiles | Found Superbattery 2635 | -10/Exiles | Warned to stay clear of 0b10 Research branches 2646 | -10/Exiles | Exiles lab attacked by MAIN.C 2731 | -10/Exiles | Discovered new exit (range 12) 2747 | -10/Exiles | Left Exiles lab with Superbattery 2747 | -10/Exiles | Entered Mines 2825 | -9/Mines | Learned location of 1 exit from Materials 2832 | -9/Mines | Assembled infested the area 2837 | -9/Mines | Assisted by a Guerilla fighting off Assembled 2861 | -9/Mines | Released all parts (3) 2891 | -9/Mines | Lost 3 parts (1p1n1w) 2911 | -9/Mines | Core integrity fell below 20% 2918 | -9/Mines | Destroyed by as-82583 with Assembled Rifle Last Messages --------------- 02847_ Seismic Survey Station disabled. 02854_ Hvy. Battle Rifle destroyed. 02854_ Carbon-fiber Leg destroyed. 02860_ Lgt. Nuclear Core destroyed. 02861_ Released Hcp. Storage Unit. 02861_ Released Aluminum Leg. 02861_ Released Mining Claw. 02861_ R-06 Scavenger collects Targeting Computer. 02862_ Slammed into R-06 Scavenger. 02864_ R-06 Scavenger sends out distress signal. 02865_ Slammed into R-06 Scavenger. 02865_ Destabilizing: Core damaged (-7). 02867_ System corrupted: Matter fused (-7). 02867_ Slammed into R-06 Scavenger. 02872_ R-06 Scavenger destroyed. 02882_ K-01 Serf collects debris. 02890_ as-29418 sneak attacks. 02891_ K-01 Serf collects debris. 02898_ Acquired 5 matter. 02913_ Slammed into as-82583. Map ----- +----------------------------------------------------+ | ???????????## ?????????????????????????? | | ??????????## ????????????????????????? | | ??????????# ????????????????????????? | | ??????????# ?????????????? ????????? | | ??????????# #???????????? ????????? | | ??????????# ####???????? ?????????? | | ???????????# ##??????? ?????????? | | ???????????# ###????? #?????????? | | ??????###???? ?????# #????#????? | | ?????## ##????# ?????## #??? #????? | | ?????# #?????# ##?????#" ##? #????? | | ????## #????## ####### ## #????? | | ???## ##??## ###??? | | ??## #### #??? | | ?## | """ #??? | | ?# %= % """ #??? | | ## * ####### a %"" #??? | | ## ##?????## * #???? | | ###### ##???????## ###???? | | #????## ######?????????## ##?????? | | #?????####???????????????# ##??????? | | #????????????????????????#=% ##???????? | | ???????????????????????###% #????????? | | ????????????????????#### % != #????????? | | ????????????????????#]!!%![/%##????????? | | ????????????????????#%###@a%% #????????? | | ????????????????????#=#?#%=* ##????????? | | ???????####?????????#%#?#%%! #????????? | | ?????### ##????????#%#?#%%% ##????????? | | ????## ##???????#%#?# !%##?????????? | | ???## ####????# #?##%*#??????????? | | ???# ##???# #??#! #??????????? | | ???# ##??# #??# #??????????? | | ????# #### ##?# !#??????????? | | ????# ## #?# %#??????????? | | ##### # #### ## [##?????????? | | # #??####### = ##????????? | | #???????## !%! ##???????? | | #### ## #????????# % #???????? | | ???# ### ##????????## #???????? | | ??? #?#####??????????#### ##??????? | | ??####???????????????????## ###????? | | ??????????????????????????# ##???? | | ??????????????????????????# #???? | | ??????????????????????????## #???? | | ???????????????????????????### ##??? | | ????????????????????????????## ##?? | | ??????????????#######??????## #?? | | ?????????????## #????## #?? | | ?????????????# ##### #?? | +----------------------------------------------------+ Best States ------------- Heat Dissipation 25 Energy Generation 14 Energy Capacity 250 Matter Stores 300 Matter Capacity 300 Sight Range 16 Terrain Scan Density 10 Weapon Shielding 33 Evasion (%) 50 Recoil Reduction 2 Item Schematics ----------------- None Robot Schematics ------------------ None Fabricated ------------ Nothing Alien Tech Used ----------------- None Achievements -------------- None Challenges ------------ None Game ------ Seed SalvageForceScythe Manual? 0 Play Time 00:20:45 Cumulative 21.1 hours Start 2020.04.23 @ 15:30:08 End 2020.04.23 @ 15:49:19 Sessions 1 Manual Loads 0 Difficulty Rogue Special Mode None Game No. 33 Rogue 33 Adventurer 0 Explorer 0 Win Type - Total 0 Types 0/0/0/0/0/0/0 Lore% 23 Gallery% 29 Achievement% 24 Wizard Run 0 Options --------- ASCII 0 Keyboard 1 Movement Numpad Keybinds 0 Fullscreen 1 Font 18/SmallcapsGlow Map View 76x50 Tactical HUD 1 Map Filters NONE Filters NONE Steam 1 RUN: 4f2509a6-b45c-4c15-acd0-dd20718ea89a